[Event "Ceske Budejovice GM 2022"]
[Site "Ceske Budejovice"]
[Date "2022.07.05"]
[Round "5.5"]
[White "Donchenko, Alexander"]
[Black "Malinovsky, Karel"]
[Result "1-0"]
[ECO "D35"]
[WhiteElo "2640"]
[BlackElo "2463"]
[Annotator "TA"]
[PlyCount "91"]
[EventDate "2022.07.01"]
[EventType "tourn"]
[EventCountry "CZE"]
[SourceTitle "playchess.com"]
[Source "ChessBase"]
[SourceQuality "1"]
[TimeControl "40/5400+30:1800+30"]

{[%evp 13,91,35,43,43,45,47,48,47,46,43,50,50,50,50,50,41,43,47,56,36,50,50,84,51,109,93,124,116,118,110,119,120,124,41,105,99,100,104,144,145,210,207,227,216,196,62,87,83,85,91,85,83,162,134,337,230,242,241,232,230,247,243,1012,969,29967,29968,29965,29968,29968,29969,29968,29970,29970,29971,29970,29971,29975,29976,29976,29974]} 1. d4 {[%emt 0:00:03]} d5 {[%emt 0:00:06]} 2. c4 {[%emt 0:00:06]} e6 {[%emt 0:00:05]} 3. Nc3 {[%emt 0:00:15]} Nf6 {[%emt 0:00:38]} 4. cxd5 {[%emt 0:00:16]} exd5 {[%emt 0:00:23]} 5. Bg5 {[%emt 0:00:09]} c6 {[%emt 0:00:50]} 6. e3 {[%emt 0:00:09]} Bf5 {[%emt 0:00:50]} 7. Qf3 {[%emt 0:00:37]} Be6 {[%emt 0:00:35]} 8. Bxf6 {[%emt 0:01:32] D35: Queen's Gambit Declined: Exchange Variation.} Qxf6 {[%emt 0:00:08]} 9. Qxf6 {[%emt 0:00:05]} gxf6 {[%emt 0:00:08]} 10. Bd3 {[%emt 0:01:51] White is slightly better.} Nd7 {[%emt 0:01:07]} 11. Nge2 {[%emt 0:06:52]} Nb6 {[%emt 0:06:09]} 12. Nf4 {[%emt 0:10:04]} h5 {[%emt 0:04:30]} 13. h4 {[%emt 0:02:02]} Bd6 {[%emt 0:01:27]} 14. Nce2 {[%emt 0:01:44] [#]} Ke7 $146 {[%emt 0:12:37]} ({Predecessor:} 14... Nc8 15. Bc2 Ne7 16. Nd3 Bf5 17. Rc1 O-O-O 18. Nc5 Bg4 19. b4 b6 20. Nd3 Bf5 {½-½ (38) Jakovenko,D (2735)-Liu,Q (2538) China 2018}) 15. Rc1 {[%emt 0:02:35]} Rag8 {[%emt 0:11:15]} 16. O-O {[%emt 0:07:03]} a5 {[%emt 0:06:28]} 17. a3 {[%emt 0:03:43]} a4 {[%emt 0:05:14]} 18. Rc3 {[%emt 0:09:53]} f5 {[%emt 0:11:11]} ({Better is} 18... Rb8 $14) 19. Rb1 {[%emt 0:03:35]} Kf6 {[%emt 0:07:41]} 20. g3 {[%emt 0:14:01]} Ra8 {[%emt 0:08:15]} 21. Kg2 {[%emt 0:03:36]} Nc8 {[%emt 0:04:07]} 22. Nh3 {[%emt 0:05:17] White is more active. Pair of Knights!} Ne7 {[%emt 0:02:17]} 23. Nc1 {[%emt 0:05:06]} ({White should try} 23. Nef4 $16) 23... b6 {[%emt 0:03:05]} (23... f4 $14) 24. Be2 $16 {[%emt 0:01:01]} c5 {[%emt 0:02:10]} 25. Nd3 {[%emt 0:00:12][%cal Rd4c5]} cxd4 {[%emt 0:00:47]} 26. exd4 {[%emt 0:00:03]} Ng6 {[%emt 0:03:35]} (26... Rhc8 $16) 27. Rc6 $18 {[%emt 0:01:52][%csl LRb6,LRd6]} Ke7 {[%emt 0:01:00]} 28. Rxb6 {[%emt 0:01:54]} f4 {[%emt 0:02:03]} 29. Nhxf4 {[%emt 0:01:08]} ({Much less strong is} 29. Ndxf4 Nxf4+ 30. Nxf4 Bxf4 $16) (29. Ng5 $18) 29... Nxf4+ $14 {[%emt 0:00:10]} 30. Nxf4 {[%emt 0:00:04]} Bxf4 {[%emt 0:00:08]} 31. gxf4 {[%emt 0:00:03]} Rhg8+ {[%emt 0:02:02]} 32. Kh2 {[%emt 0:00:51]} Rac8 {[%emt 0:01:55]} (32... Kf6 $16) 33. Rg1 {[%emt 0:01:58]} ({Don't take} 33. Bxh5 $6 Rh8 34. Rb7+ Kf6 $14) 33... Bg4 $2 {[%emt 0:00:41] [#] A mistake that costs the game.} (33... Rb8 $16) 34. f3 {[%emt 0:03:56]} Bd7 {[%emt 0:02:03]} 35. Rxg8 {[%emt 0:02:13]} Rxg8 $18 {[%emt 0:00:03][%mdl 4096] Endgame KRB-KRB} 36. Bd3 {[%emt 0:00:11]} Rc8 {[%emt 0:01:45]} 37. Rb7 {[%emt 0:00:25]} Kd6 {[%emt 0:00:03] [#]} (37... Rd8 38. f5 f6) 38. Rxd7+ $1 {[%emt 0:01:21]} Kxd7 {[%emt 0:00:02] KR-KB} (38... Ke6 39. Bb5) 39. Bf5+ {[%emt 0:00:07] White mates.} Kd8 {[%emt 0:00:05]} 40. Bxc8 {[%emt 0:00:05]} Kxc8 {[%emt 0:00:03] KP-KP} 41. Kg3 {[%emt 0:30:05]} Kd7 {[%emt 0:31:03]} 42. Kf2 {[%emt 0:00:15]} Kc6 {[%emt 0:00:00]} 43. Ke3 {[%emt 0:00:00]} Kb5 {[%emt 0:00:00]} 44. Kd3 {[%emt 0:00:00]} f5 {[%emt 0:00:00]} 45. Kc3 {[%emt 0:00:00]} Ka5 {[%emt 0:00:00]} 46. b3 {[%emt 0:00:00] Weighted Error Value: White=0.11 (very precise) /Black=0.37} 1-0

[Event "Ceske Budejovice GM 2022"]
[Site "Ceske Budejovice"]
[Date "2022.07.06"]
[Round "6.1"]
[White "Sahidi, Samir"]
[Black "Malinovsky, Karel"]
[Result "1/2-1/2"]
[ECO "C91"]
[WhiteElo "2462"]
[BlackElo "2463"]
[Annotator "TA"]
[PlyCount "82"]
[EventDate "2022.07.01"]
[EventType "tourn"]
[EventCountry "CZE"]
[SourceTitle "playchess.com"]
[Source "ChessBase"]
[SourceQuality "1"]
[TimeControl "40/5400+30:1800+30"]

{[%evp 20,82,0,0,0,0,0,0,0,0,13,0,11,-22,-25,-58,-31,-84,-65,-64,-62,-61,-52,-58,-61,-70,-69,-72,-52,-51,-45,-51,-41,-49,-47,-58,-60,-47,-49,-55,-62,-91,-62,-60,-72,-54,-6,-103,-98,-103,-105,-97,0,0,0,0,0,0,0,0,0,0,0,0,0]} 1. e4 {[%emt 0:00:11]} e5 {[%emt 0:00:21]} 2. Nf3 {[%emt 0:00:11]} Nc6 {[%emt 0:00:06]} 3. Bb5 {[%emt 0:00:51]} a6 {[%emt 0:00:22]} 4. Ba4 {[%emt 0:00:23]} Nf6 {[%emt 0:00:13]} 5. O-O {[%emt 0:00:51]} Be7 {[%emt 0:00:37]} 6. Re1 {[%emt 0:02:31]} b5 {[%emt 0:00:20]} 7. Bb3 {[%emt 0:00:11]} d6 {[%emt 0:00:49]} 8. c3 {[%emt 0:01:34]} O-O {[%emt 0:00:38]} 9. d4 {[%emt 0:02:04]} Bg4 {[%emt 0:01:10]} 10. Be3 {[%emt 0:01:53]} exd4 {[%emt 0:01:40]} 11. cxd4 {[%emt 0:00:22]} Na5 {[%emt 0:00:12] C91: Closed Ruy Lopez: 7...d6 8 c3 0-0 9 d4.} (11... Nxe4 $2 12. Qc2 $18 (12. Bd5 Nb4 $18)) 12. h3 {[%emt 0:04:06]} Nxb3 {[%emt 0:08:51]} 13. axb3 {[%emt 0:04:30]} Bh5 {[%emt 0:05:40]} 14. Nbd2 {[%emt 0:02:15]} Bg6 {[%emt 0:13:23]} 15. Bg5 {[%emt 0:00:33] [#]} h6 $146 {[%emt 0:02:31]} ({Predecessor:} 15... Re8 16. Bxf6 Bxf6 17. b4 c5 18. bxc5 dxc5 19. e5 Be7 20. Nb3 c4 21. Nc1 Bb4 {½-½ (73) Talukdar,R (2331)-Eckert,D (2139) Montreal 2020}) 16. Bh4 {[%emt 0:03:16]} (16. Bxf6 $5 Bxf6 17. b4 $11) 16... Re8 {[%emt 0:05:23][%cal Of6e4]} 17. e5 {[%emt 0:08:14]} dxe5 {[%emt 0:15:19]} 18. Bxf6 {[%emt 0:25:33]} (18. Rxe5 $15 Nd5 19. Bxe7 Nxe7 20. Nf1) 18... Bxf6 {[%emt 0:04:54]} 19. dxe5 {[%emt 0:00:26]} Be7 {[%emt 0:00:26][%cal Bf6e7,Be7b4,Bb4a5,Ba5b6][%mdl 32]} 20. Ne4 {[%emt 0:00:46]} Bb4 {[%emt 0:03:25] [#] Threatens to win with ...Qxd1.} 21. Re3 {[%emt 0:02:27]} Qxd1+ {[%emt 0:03:40]} 22. Rxd1 {[%emt 0:01:31]} Rad8 {[%emt 0:05:23]} 23. Rc1 {[%emt 0:01:54]} Ba5 {[%emt 0:07:30]} (23... Bxe4 $5 24. Rxe4 c5 $15) 24. Nc5 {[%emt 0:02:33]} Bb6 $1 {[%emt 0:00:44]} 25. b4 {[%emt 0:01:04]} Rd5 $1 {[%emt 0:02:08] Strongly threatening ...a5.} 26. Rec3 {[%emt 0:08:19]} a5 {[%emt 0:02:18]} 27. bxa5 {[%emt 0:02:27]} Bxa5 {[%emt 0:00:05] This bishop pair is nice.} 28. Rb3 {[%emt 0:01:19]} Bb6 {[%emt 0:01:38]} 29. Na6 {[%emt 0:00:38]} ({Of course not} 29. Rxb5 Bd3 30. Nxd3 Rxb5 $17) 29... Red8 {[%emt 0:03:20]} 30. Kh2 {[%emt 0:01:33]} Rd1 {[%emt 0:02:26]} ({Much weaker is} 30... Bxf2 $6 31. Nxc7 R5d7 32. Rcc3 $11) 31. Rxd1 {[%emt 0:04:53]} Rxd1 {[%emt 0:00:02]} 32. Rxb5 {[%emt 0:00:19]} Rf1 {[%emt 0:04:08]} (32... Be4 $15) 33. Nb4 {[%emt 0:10:40]} (33. Nc5 $11 {keeps the balance.}) 33... Rxf2 $17 {[%emt 0:00:56]} 34. Nd5 {[%emt 0:00:50]} Bd3 {[%emt 0:01:01]} 35. Rb4 {[%emt 0:00:19] [#]} Bf1 {[%emt 0:02:33]} ({Black should try} 35... Bc5 $1 $17 {[%cal Rc5b4]} 36. Rb8+ Kh7) 36. Nxb6 $11 {[%emt 0:04:01] The position is equal.} Rxg2+ {[%emt 0:01:01]} (36... cxb6 $2 37. Kg1 Rxf3 38. gxf3 Bxh3 39. Rxb6 $18) 37. Kh1 {[%emt 0:00:07] aiming for Nd7.} cxb6 {[%emt 0:00:18]} 38. Nh2 {[%emt 0:00:55]} Rf2 {[%emt 0:00:22]} 39. Kg1 $1 {[%emt 0:00:05]} Rg2+ {[%emt 0:00:04]} 40. Kh1 {[%emt 0:00:56]} Rf2 {[%emt 0:00:21]} 41. Kg1 $1 {[%emt 0:30:05]} Rg2+ {[%emt 0:31:03] Weighted Error Value: White=0.11 (very precise) /Black=0.10 (very precise)} 1/2-1/2

[Event "Ceske Budejovice GM 2022"]
[Site "Ceske Budejovice"]
[Date "2022.07.06"]
[Round "6.2"]
[White "Stefansson, Hannes"]
[Black "Donchenko, Alexander"]
[Result "1-0"]
[ECO "B51"]
[WhiteElo "2541"]
[BlackElo "2640"]
[Annotator "TA"]
[PlyCount "59"]
[EventDate "2022.07.01"]
[EventType "tourn"]
[EventCountry "CZE"]
[SourceTitle "playchess.com"]
[Source "ChessBase"]
[SourceQuality "1"]
[TimeControl "40/5400+30:1800+30"]

{[%evp 11,59,7,10,3,15,16,6,6,19,17,14,0,0,0,0,-18,73,67,66,77,148,60,278,252,499,498,575,560,572,575,603,621,609,599,541,406,852,822,918,927,908,806,1270,1268,4822,4814,4810,4794,29991,29992]} 1. e4 {[%emt 0:00:06]} c5 {[%emt 0:00:14]} 2. Nf3 {[%emt 0:00:19]} d6 {[%emt 0:00:12]} 3. Bb5+ {[%emt 0:00:26]} Nd7 {[%emt 0:00:39]} 4. d4 {[%emt 0:00:52]} cxd4 {[%emt 0:00:23]} 5. Qxd4 {[%emt 0:00:27]} a6 {[%emt 0:02:39]} 6. Bxd7+ {[%emt 0:01:03]} Bxd7 {[%emt 0:00:05]} 7. c4 {[%emt 0:01:25] B51: Sicilian: Moscow Variation (3 Bb5+) without 3...Bd7.} Nf6 {[%emt 0:03:40]} 8. Bg5 {[%emt 0:02:43][%cal Bc1g5,Bg5h4,Bh4e7][%mdl 32]} e6 {[%emt 0:06:42]} 9. Nc3 {[%emt 0:01:54] The position is equal.} Bc6 {[%emt 0:09:26]} 10. O-O {[%emt 0:08:26][%cal Oc3d5]} Be7 {[%emt 0:00:38]} 11. a4 {[%emt 0:10:48] [#]} h6 $146 {[%emt 0:04:49]} ({Predecessor:} 11... O-O 12. Rfd1 h6 13. Bh4 Qa5 14. Qd3 Rac8 15. b3 Rfd8 16. Nd4 Be8 17. f3 Qh5 {0-1 (83) Zhang,Z (2640)-Wei,Y (2729) Hangzhou 2022}) 12. Bh4 {[%emt 0:00:38]} O-O {[%emt 0:00:48][%cal Of6e4]} 13. a5 {[%emt 0:05:29]} Nxe4 {[%emt 0:13:36]} 14. Bxe7 $16 {[%emt 0:08:30] White is more active.} Nxc3 $1 {[%emt 0:00:06]} 15. Qh4 $1 {[%emt 0:00:29]} ({Stronger than} 15. Qxd6 Qxd6 16. Bxd6 Rfd8 17. bxc3 Rxd6 $17) 15... Ne2+ {[%emt 0:17:07]} 16. Kh1 {[%emt 0:00:07]} Qc7 {[%emt 0:00:10] A mistake that costs the game.} 17. Bxf8 $18 {[%emt 0:00:51]} Rxf8 {[%emt 0:00:11]} (17... Bxf3 18. gxf3 e5) 18. Rfe1 {[%emt 0:04:01]} Bxf3 {[%emt 0:00:06]} 19. gxf3 {[%emt 0:00:05]} Qc6 {[%emt 0:00:06][%cal Rc6f3] [#]} 20. Ra3 {[%emt 0:01:58]} g5 {[%emt 0:00:43]} 21. Qxh6 {[%emt 0:00:10]} Nf4 {[%emt 0:00:04]} 22. Qxg5+ {[%emt 0:02:58]} Ng6 {[%emt 0:00:02]} 23. h4 {[%emt 0:06:52][%cal Bh2h4,Bh4h5][%mdl 32] Threatens to win with h5.} Kg7 {[%emt 0:00:27]} (23... Qxc4 $142 24. h5 Qh4+ 25. Qxh4 Nxh4) 24. h5 {[%emt 0:08:42]} Rh8 {[%emt 0:00:03]} 25. Kg1 {[%emt 0:01:55]} Rh6 {[%emt 0:00:11]} 26. f4 {[%emt 0:06:09]} Qxc4 {[%emt 0:06:44]} 27. Rg3 {[%emt 0:00:13] [#] Strongly threatening f5.} Qc6 {[%emt 0:00:32]} 28. f5 {[%emt 0:04:02]} exf5 {[%emt 0:00:44]} 29. Qxf5 {[%emt 0:00:13] White threatens Re7 and mate.} Kf8 {[%emt 0:02:04] Prevents Re7.} 30. Rxg6 {[%emt 0:01:09] Weighted Error Value: White=0.10 (very precise) /Black=0.92} 1-0

[Event "Ceske Budejovice GM 2022"]
[Site "Ceske Budejovice"]
[Date "2022.07.06"]
[Round "6.4"]
[White "Kraus, Tomas"]
[Black "Vykouk, Jan"]
[Result "1/2-1/2"]
[ECO "B22"]
[WhiteElo "2488"]
[BlackElo "2476"]
[Annotator "TA"]
[PlyCount "68"]
[EventDate "2022.07.01"]
[EventType "tourn"]
[EventCountry "CZE"]
[SourceTitle "playchess.com"]
[Source "ChessBase"]
[SourceQuality "1"]
[TimeControl "40/5400+30:1800+30"]

{[%evp 18,68,47,24,41,28,62,10,53,51,43,28,53,69,59,35,64,38,55,37,68,3,0,0,2,0,3,-26,-15,-21,0,0,0,0,0,-6,-11,-47,-47,-51,0,0,0,0,0,0,0,-62,-62,-70,0,-50,-83]} 1. e4 {[%emt 0:00:10]} c5 {[%emt 0:00:04]} 2. c3 {[%emt 0:00:21]} Nf6 {[%emt 0:00:10]} 3. e5 {[%emt 0:00:45]} Nd5 {[%emt 0:00:05]} 4. Nf3 {[%emt 0:02:01]} d6 {[%emt 0:00:07]} 5. d4 {[%emt 0:02:29]} cxd4 {[%emt 0:00:51]} 6. cxd4 {[%emt 0:00:29]} Nc6 {[%emt 0:04:24]} 7. Bc4 {[%emt 0:00:55]} Nb6 {[%emt 0:00:27]} 8. Bb5 {[%emt 0:00:59]} a6 {[%emt 0:03:57]} 9. Bxc6+ {[%emt 0:02:19]} bxc6 {[%emt 0:00:04]} 10. O-O {[%emt 0:08:19]} Bg4 $1 {[%emt 0:08:27] The main line 10...Bg4 scores better than 10...g6. B22: Sicilian: 2 c3.} 11. h3 {[%emt 0:03:26] [#]} Bf5 $146 {[%emt 0:05:01]} ({Predecessor:} 11... Bh5 12. Nbd2 e6 13. b3 d5 14. a4 Nd7 15. Ba3 Bxa3 16. Rxa3 a5 17. Qc2 Rc8 18. Qc3 {0-1 (36) Belyakov,B (2505)-Sjugirov,S (2662) St Petersburg 2019}) 12. exd6 {[%emt 0:10:59]} (12. Nc3 $14) 12... exd6 {[%emt 0:13:14] The position is equal.} 13. Re1+ {[%emt 0:05:09]} Be7 {[%emt 0:00:21]} 14. Bg5 {[%emt 0:05:38]} f6 {[%emt 0:10:50]} 15. Bd2 {[%emt 0:04:37] Hoping for Nh4.} Nd5 {[%emt 0:00:49]} 16. Nc3 {[%emt 0:07:28]} Nxc3 {[%emt 0:03:07]} 17. Bxc3 {[%emt 0:00:02] [#] Strongly threatening d5.} O-O {[%emt 0:01:59]} 18. Qe2 {[%emt 0:03:48] Threatens to win with Nh4.} Rf7 {[%emt 0:00:14]} 19. Rac1 {[%emt 0:01:55]} (19. d5 $14 c5 20. Nd2) 19... d5 $11 {[%emt 0:01:41]} 20. Nd2 {[%emt 0:03:05]} a5 {[%emt 0:00:44]} 21. Qf3 {[%emt 0:03:12]} Qd7 {[%emt 0:03:39]} 22. Re3 {[%emt 0:03:18]} a4 {[%emt 0:03:12]} 23. a3 {[%emt 0:03:59]} g5 {[%emt 0:08:50]} 24. Rce1 {[%emt 0:03:53][%cal Oe3e7] [#] aiming for Rxe7!} Bd6 {[%emt 0:03:35]} 25. Qe2 {[%emt 0:01:35]} Ra7 {[%emt 0:05:57]} 26. g4 {[%emt 0:05:04]} Bg6 {[%emt 0:00:05]} 27. Re8+ {[%emt 0:00:14]} Kg7 {[%emt 0:00:42]} 28. Qe6 {[%emt 0:00:53]} Qxe6 {[%emt 0:03:28]} ({Black should try} 28... Rf8 $15 29. Rxf8 Bxf8) 29. R1xe6 {[%emt 0:01:54]} Rfd7 {[%emt 0:00:14]} 30. Rc8 {[%emt 0:01:13]} Bf7 {[%emt 0:01:27] A strong pair of Bishops.} 31. Re1 {[%emt 0:01:34]} Rdc7 {[%emt 0:00:46]} 32. Rxc7 {[%emt 0:00:36]} (32. Rd8 $11 Be7 33. Rb8) 32... Rxc7 $15 {[%emt 0:00:05]} 33. Nf1 {[%emt 0:00:53]} Rb7 {[%emt 0:04:24]} (33... Bg6 $15) 34. Ne3 {[%emt 0:00:45]} (34. Ng3 $1 $11 Bf8 35. Nf5+ Kg6 36. f3) 34... Bg6 {[%emt 0:00:07] Weighted Error Value: White=0.18 (very precise) /Black=0.13 (very precise)} 1/2-1/2

[Event "Ceske Budejovice GM 2022"]
[Site "Ceske Budejovice"]
[Date "2022.07.06"]
[Round "6.5"]
[White "Gazik, Viktor"]
[Black "Morgunov, Marc"]
[Result "1-0"]
[ECO "E11"]
[WhiteElo "2544"]
[BlackElo "2376"]
[Annotator "TA"]
[PlyCount "57"]
[EventDate "2022.07.01"]
[EventType "tourn"]
[EventCountry "CZE"]
[SourceTitle "playchess.com"]
[Source "ChessBase"]
[SourceQuality "1"]
[TimeControl "40/5400+30:1800+30"]

{[%evp 10,57,22,25,21,7,22,14,16,8,12,12,4,3,14,14,11,7,50,54,41,12,12,17,14,0,0,0,0,0,0,0,47,39,109,70,58,92,66,70,170,165,639,656,621,559,852,869,1184,1041]} 1. d4 {[%emt 0:00:03]} Nf6 {[%emt 0:00:23]} 2. c4 {[%emt 0:00:06]} e6 {[%emt 0:05:39]} 3. Nf3 {[%emt 0:00:42]} Bb4+ {[%emt 0:05:15]} 4. Nbd2 {[%emt 0:00:08]} O-O {[%emt 0:01:03]} 5. a3 {[%emt 0:00:05]} Bxd2+ {[%emt 0:01:34]} 6. Bxd2 {[%emt 0:14:55]} (6. Kxd2 d6 $15) 6... b6 {[%emt 0:02:19] E11: Bogo-Indian.} 7. g3 {[%emt 0:03:33]} d5 {[%emt 0:07:43]} 8. Bg2 {[%emt 0:04:14]} Bb7 {[%emt 0:00:53] The position is equal.} 9. Ne5 {[%emt 0:20:41][%cal Bf3e5,Be5d3,Bd3f4,Bf4h5][%mdl 32]} Ne4 {[%emt 0:06:28] [#]} 10. O-O $146 {[%emt 0:03:21]} ({Predecessor:} 10. Be3 f6 11. Nd3 dxc4 12. Nf4 Qe7 13. Qc2 f5 14. O-O Bd5 15. f3 Nd6 16. Nh3 {1-0 (33) Singer,R (2235)-Liebmann,A Graz 1993}) 10... f6 {[%emt 0:07:40]} 11. Nd3 {[%emt 0:04:29]} dxc4 {[%emt 0:05:52]} 12. Nf4 {[%emt 0:00:05]} Qc8 {[%emt 0:01:06]} 13. Rc1 {[%emt 0:08:35]} g5 {[%emt 0:09:44]} 14. Nh5 {[%emt 0:03:04]} Nxd2 {[%emt 0:02:18]} 15. Bxb7 {[%emt 0:00:33]} (15. Qxd2 $5 {[%cal Rg2b7]} Bxg2 16. Kxg2 $11) 15... Qxb7 {[%emt 0:00:06]} 16. Qxd2 {[%emt 0:00:04]} Qd5 {[%emt 0:01:14]} 17. b3 {[%emt 0:10:58]} c5 {[%emt 0:07:04]} 18. Qb2 {[%emt 0:10:26] Threatens to win with dxc5.} cxd4 {[%emt 0:12:30] [#] Hoping for ...c3.} 19. Rxc4 {[%emt 0:00:05][%cal Bc1c4,Bc4c6,Bc6c7,Bc7a7][%mdl 32]} e5 {[%emt 0:01:08]} ({Much less strong is} 19... Nc6 20. Rfc1 Ne5 21. Rxd4 $16) 20. Qc2 {[%emt 0:04:21]} Qf7 {[%emt 0:06:24]} (20... Nd7 $11) 21. g4 $14 {[%emt 0:00:51][%mdl 1024] aiming for Rc7. White has compensation.} Qe6 {[%emt 0:00:58]} (21... f5 $14) 22. Qe4 {[%emt 0:02:31] White is more active.} ({Reject} 22. Rc7 $6 Qxg4+ 23. Ng3 Nd7 $11) 22... Na6 {[%emt 0:01:47]} 23. Rc6 {[%emt 0:02:07]} Nc5 {[%emt 0:00:33]} 24. Qg2 {[%emt 0:00:21]} Qxb3 {[%emt 0:04:44]} (24... Qe7 $1 $14) 25. Nxf6+ $40 {[%emt 0:00:01][%mdl 128] White attacks with force.} Kh8 $2 {[%emt 0:00:52] [#]} (25... Kg7) 26. Rc7 $1 {[%emt 0:00:20][%csl Gf6][%cal Rc7h7] White is clearly winning.} Qc2 {[%emt 0:01:22]} 27. Qc6 {[%emt 0:02:51]} Rad8 {[%emt 0:02:39]} 28. Rxa7 {[%emt 0:00:02] Qc7 is the strong threat.} Qg6 {[%emt 0:02:24]} 29. Qc7 {[%emt 0:00:19] Weighted Error Value: White=0.08 (flawless) /Black=0.52} 1-0

[Event "Ceske Budejovice GM 2022"]
[Site "Ceske Budejovice"]
[Date "2022.07.07"]
[Round "7.1"]
[White "Morgunov, Marc"]
[Black "Sahidi, Samir"]
[Result "1-0"]
[ECO "B92"]
[WhiteElo "2376"]
[BlackElo "2462"]
[Annotator "RC"]
[PlyCount "75"]
[EventDate "2022.07.01"]
[EventType "tourn"]
[EventCountry "CZE"]
[SourceTitle "playchess.com"]
[Source "ChessBase"]
[SourceQuality "1"]
[TimeControl "40/5400+30:1800+30"]

1. e4 {[%emt 0:00:07]} c5 {[%emt 0:00:27]} 2. Nf3 {[%emt 0:00:10]} d6 {[%emt 0:00:52]} 3. d4 {[%emt 0:00:22]} cxd4 {[%emt 0:00:08]} 4. Nxd4 {[%emt 0:00:05]} Nf6 {[%emt 0:00:10]} 5. Nc3 {[%emt 0:00:04]} a6 {[%emt 0:00:10]} 6. Be2 {[%emt 0:00:55]} e5 {[%emt 0:01:25]} 7. Nb3 {[%emt 0:00:27]} Be7 {[%emt 0:01:08]} 8. O-O {[%emt 0:00:18]} O-O {[%emt 0:01:49]} 9. Qd3 {[%emt 0:01:57]} Be6 {[%emt 0:06:20]} 10. Bd2 {[%emt 0:02:25]} Nbd7 {[%emt 0:02:24]} 11. Nd5 {[%emt 0:01:17]} Bxd5 {[%emt 0:03:13]} 12. exd5 {[%emt 0:00:06]} Rc8 {[%emt 0:06:35]} 13. c4 {[%emt 0:02:36]} g6 {[%emt 0:05:44]} 14. Na5 {[%emt 0:05:39]} Rc7 {[%emt 0:02:36]} 15. b4 {[%emt 0:02:27]} Ne8 {[%emt 0:00:41]} 16. Bh6 {[%emt 0:05:47]} Ng7 {[%emt 0:00:14]} 17. c5 {[%emt 0:04:15]} e4 {[%emt 0:01:11]} 18. Qd2 {[%emt 0:03:15]} Ne5 {[%emt 0:03:23]} 19. Rac1 {[%emt 0:26:55]} dxc5 {[%emt 0:27:08]} 20. Bf4 {[%emt 0:06:01]} f6 {[%emt 0:02:21]} 21. bxc5 {[%emt 0:03:54]} Bxc5 {[%emt 0:00:16]} 22. Bxe5 {[%emt 0:01:25]} fxe5 {[%emt 0:01:11]} 23. Rxc5 {[%emt 0:00:34]} Rxc5 {[%emt 0:01:22]} 24. Nxb7 {[%emt 0:00:06]} Qb6 {[%emt 0:01:59]} 25. Nxc5 {[%emt 0:07:04]} Qxc5 {[%emt 0:00:08]} 26. Bg4 {[%emt 0:03:36]} Ne8 {[%emt 0:09:59]} 27. Be6+ {[%emt 0:01:51]} Kg7 {[%emt 0:00:13]} 28. Qg5 {[%emt 0:02:01]} Qd6 {[%emt 0:02:47]} 29. Rb1 {[%emt 0:06:54]} Nc7 {[%emt 0:00:24]} 30. Rb7 {[%emt 0:02:08]} Re8 {[%emt 0:01:57]} 31. h4 {[%emt 0:00:44]} h6 {[%emt 0:00:36]} 32. Qe3 {[%emt 0:01:04]} a5 {[%emt 0:06:18]} 33. Qa7 {[%emt 0:02:32]} Re7 {[%emt 0:00:21]} 34. Qb8 {[%emt 0:00:14]} h5 {[%emt 0:11:28]} 35. Qg8+ {[%emt 0:00:16]} Kh6 {[%emt 0:00:08]} 36. Qf8+ {[%emt 0:00:08]} Kh7 {[%emt 0:00:09]} 37. Bg8+ {[%emt 0:00:08]} Kh8 {[%emt 0:00:21]} 38. Bf7+ {[%emt 0:00:05]} 1-0